[Event "SVK-ch GM 2018"]
[Site "Banska Stiavnica"]
[Date "2018.07.07"]
[Round "1"]
[White "Repka, Christopher"]
[Black "Petrik, Tomas"]
[Result "1/2-1/2"]
[ECO "A05"]
[WhiteElo "2519"]
[BlackElo "2470"]
[Annotator "ChessBase"]
[PlyCount "146"]
[EventDate "2018.07.07"]
[EventType "tourn"]
[EventCountry "SVK"]
[SourceTitle "playchess.com"]
[Source "ChessBase"]
[SourceQuality "1"]
[TimeControl "40/5400+30:1800+30"]

1. Nf3 {[%emt 0:00:00]} Nf6 {[%emt 0:04:06]} 2. g3 {[%emt 0:00:00]} d5 {[%emt 0:09:46]} 3. Bg2 {[%emt 0:00:00]} e6 {[%emt 0:01:32]} 4. O-O {[%emt 0:00:00]} Be7 {[%emt 0:00:06]} 5. d3 {[%emt 0:00:15]} c5 {[%emt 0:03:21]} 6. Nbd2 {[%emt 0:00:05]} Nc6 {[%emt 0:00:37]} 7. e4 {[%emt 0:00:05]} O-O {[%emt 0:04:06]} 8. e5 {[%emt 0:00:20]} Nd7 {[%emt 0:00:24]} 9. Re1 {[%emt 0:00:05]} b5 {[%emt 0:03:48]} 10. c4 {[%emt 0:06:19]} bxc4 {[%emt 0:15:04]} 11. dxc4 {[%emt 0:00:11]} Nb6 {[%emt 0:00:14]} 12. b3 {[%emt 0:01:57]} a5 {[%emt 0:07:49]} 13. Ba3 {[%emt 0:07:55]} Nb4 {[%emt 0:10:02]} 14. Bf1 {[%emt 0:23:37]} Bb7 {[%emt 0:02:07]} 15. Bxb4 {[%emt 0:04:51]} axb4 {[%emt 0:08:56]} 16. Qc2 {[%emt 0:02:54]} dxc4 {[%emt 0:10:34]} 17. Bxc4 {[%emt 0:01:18]} Nxc4 {[%emt 0:00:12]} 18. Qxc4 {[%emt 0:00:03]} Qd5 {[%emt 0:01:23]} 19. Qg4 {[%emt 0:01:08]} f5 {[%emt 0:04:24]} 20. exf6 {[%emt 0:09:44]} Bxf6 {[%emt 0:01:04]} 21. Rad1 {[%emt 0:01:01]} Rxa2 {[%emt 0:03:34]} 22. Ne4 {[%emt 0:02:20]} Bd4 {[%emt 0:00:17]} 23. Nxd4 {[%emt 0:01:57]} cxd4 {[%emt 0:00:06]} 24. f3 {[%emt 0:00:04]} h6 {[%emt 0:05:23]} 25. Rd2 {[%emt 0:05:48]} Raa8 {[%emt 0:02:13]} 26. Rc2 {[%emt 0:06:48]} Rac8 {[%emt 0:00:03]} 27. Rxc8 {[%emt 0:01:17]} Bxc8 {[%emt 0:00:01]} 28. Nd2 {[%emt 0:00:06]} Bd7 {[%emt 0:01:15]} 29. Qe4 {[%emt 0:01:11]} Qc5 {[%emt 0:01:30]} 30. Nc4 {[%emt 0:00:04]} Rf5 {[%emt 0:00:30]} 31. Kg2 {[%emt 0:07:15]} Bc6 {[%emt 0:00:12]} 32. Qxe6+ {[%emt 0:01:48]} Kh7 {[%emt 0:00:01]} 33. Re5 {[%emt 0:06:07]} Bxf3+ {[%emt 0:00:21]} 34. Kf2 {[%emt 0:00:06]} Bg4+ {[%emt 0:01:18]} 35. Rxf5 {[%emt 0:00:56]} Bxf5 {[%emt 0:00:05]} 36. Qe5 {[%emt 0:00:04]} Qxe5 {[%emt 0:01:02]} 37. Nxe5 {[%emt 0:00:05]} Be6 {[%emt 0:00:25]} 38. Nc6 {[%emt 0:00:08]} Bxb3 {[%emt 0:00:04]} 39. Nxb4 {[%emt 0:00:03]} Ba4 {[%emt 0:00:44]} 40. Kf3 {[%emt 0:04:29]} Kg6 {[%emt 0:00:16]} 41. Ke4 {[%emt 0:30:55]} Kg5 {[%emt 0:05:27]} 42. Kxd4 {[%emt 0:00:00]} Kg4 {[%emt 0:01:24]} 43. Ke3 {[%emt 0:00:00]} Kh3 {[%emt 0:00:07]} 44. Kf2 {[%emt 0:00:00]} Kxh2 {[%emt 0:00:21]} 45. Nd5 {[%emt 0:00:00]} Bd7 {[%emt 0:10:58]} 46. Ne3 {[%emt 0:00:00]} g5 {[%emt 0:02:37]} 47. Nf1+ {[%emt 0:00:00]} Kh3 {[%emt 0:00:08]} 48. Ne3 {[%emt 0:00:00]} Bc8 {[%emt 0:02:39]} 49. Kf3 {[%emt 0:00:00]} Kh2 {[%emt 0:02:01]} 50. Kf2 {[%emt 0:00:00]} h5 {[%emt 0:02:58]} 51. Nf1+ {[%emt 0:00:00]} Kh3 {[%emt 0:00:06]} 52. Ne3 {[%emt 0:00:00]} Ba6 {[%emt 0:03:40]} 53. Nf5 {[%emt 0:00:00]} Bc8 {[%emt 0:01:50]} 54. Ne3 {[%emt 0:00:00]} Bd7 {[%emt 0:00:52]} 55. Nd5 {[%emt 0:00:00]} Bf5 {[%emt 0:00:42]} 56. Ne3 {[%emt 0:00:00]} Be6 {[%emt 0:00:09]} 57. Ng2 {[%emt 0:00:00]} Bd7 {[%emt 0:01:17]} 58. Ne3 {[%emt 0:00:00]} Bc6 {[%emt 0:01:14]} 59. Nf5 {[%emt 0:00:00]} g4 {[%emt 0:01:18]} 60. Ne3 {[%emt 0:00:00]} Be4 {[%emt 0:00:15]} 61. Nf1 {[%emt 0:00:00]} Bd3 {[%emt 0:00:47]} 62. Ne3 {[%emt 0:00:00]} Kh2 {[%emt 0:00:18]} 63. Ng2 {[%emt 0:00:00]} Ba6 {[%emt 0:00:42]} 64. Nf4 {[%emt 0:00:00]} h4 {[%emt 0:00:04]} 65. gxh4 {[%emt 0:00:00]} g3+ {[%emt 0:00:01]} 66. Ke3 {[%emt 0:00:00]} Bc8 {[%emt 0:00:45]} 67. Ke4 {[%emt 0:00:00]} Bg4 {[%emt 0:00:19]} 68. Ke5 {[%emt 0:00:00]} Bd1 {[%emt 0:01:04]} 69. Kf6 {[%emt 0:00:00]} Kg1 {[%emt 0:00:08]} 70. h5 {[%emt 0:00:00]} Bxh5 {[%emt 0:01:22]} 71. Nxh5 {[%emt 0:00:00]} g2 {[%emt 0:00:07]} 72. Nf4 {[%emt 0:00:00]} Kh1 {[%emt 0:00:03]} 73. Nxg2 {[%emt 0:00:00]} Kxg2 {[%emt 0:00:33]} 1/2-1/2

[Event "SVK-ch GM 2018"]
[Site "Banska Stiavnica"]
[Date "2018.07.07"]
[Round "1"]
[White "Gazik, Viktor"]
[Black "Mazur, Stefan"]
[Result "1-0"]
[ECO "A25"]
[WhiteElo "2490"]
[BlackElo "2425"]
[Annotator "ChessBase"]
[PlyCount "125"]
[EventDate "2018.07.07"]
[EventType "tourn"]
[EventCountry "SVK"]
[SourceTitle "playchess.com"]
[Source "ChessBase"]
[SourceQuality "1"]
[TimeControl "40/5400+30:1800+30"]

1. c4 {[%emt 0:00:00]} e5 {[%emt 0:00:22]} 2. g3 {[%emt 0:00:00]} Nc6 {[%emt 0:00:23]} 3. Bg2 {[%emt 0:00:00]} d6 {[%emt 0:00:13]} 4. Nc3 {[%emt 0:01:02]} Be6 {[%emt 0:00:21]} 5. d3 {[%emt 0:02:22]} Qd7 {[%emt 0:00:20]} 6. Rb1 {[%emt 0:03:05]} Nf6 {[%emt 0:01:22]} 7. b4 {[%emt 0:08:40]} Be7 {[%emt 0:02:33]} 8. b5 {[%emt 0:05:14]} Nd8 {[%emt 0:00:10]} 9. Nf3 {[%emt 0:01:03]} Bh3 {[%emt 0:01:10]} 10. O-O {[%emt 0:00:11]} Bxg2 {[%emt 0:02:02]} 11. Kxg2 {[%emt 0:00:03]} O-O {[%emt 0:04:42]} 12. e4 {[%emt 0:06:00]} Ne6 {[%emt 0:04:55]} 13. h3 {[%emt 0:07:31]} Rfe8 {[%emt 0:11:12]} 14. Be3 {[%emt 0:02:12]} Bf8 {[%emt 0:01:26]} 15. Nd5 {[%emt 0:03:03]} Nxd5 {[%emt 0:04:42]} 16. cxd5 {[%emt 0:00:27]} Nc5 {[%emt 0:00:55]} 17. a4 {[%emt 0:09:48]} b6 {[%emt 0:06:50]} 18. Bxc5 {[%emt 0:02:10]} dxc5 {[%emt 0:07:09]} 19. a5 {[%emt 0:04:01]} Bd6 {[%emt 0:03:41]} 20. Rb2 {[%emt 0:10:22]} g6 {[%emt 0:02:58]} 21. h4 {[%emt 0:04:49]} Rf8 {[%emt 0:12:28]} 22. h5 {[%emt 0:03:44]} Qg4 {[%emt 0:05:31]} 23. Rh1 {[%emt 0:04:28]} g5 {[%emt 0:05:53]} 24. Nd2 {[%emt 0:00:36]} Qxd1 {[%emt 0:01:53]} 25. Rxd1 {[%emt 0:00:02]} f5 {[%emt 0:03:45]} 26. Nc4 {[%emt 0:00:12]} g4 {[%emt 0:03:48]} 27. Ne3 {[%emt 0:01:07]} fxe4 {[%emt 0:00:33]} 28. dxe4 {[%emt 0:00:02]} Rf3 {[%emt 0:03:52]} 29. Ra1 {[%emt 0:00:10]} Raf8 {[%emt 0:03:22]} 30. Nxg4 {[%emt 0:00:10]} Rd3 {[%emt 0:01:48]} 31. Nh6+ {[%emt 0:01:51]} Kg7 {[%emt 0:00:11]} 32. Nf5+ {[%emt 0:00:07]} Rxf5 {[%emt 0:02:09]} 33. exf5 {[%emt 0:00:08]} Kf6 {[%emt 0:00:05]} 34. axb6 {[%emt 0:13:19]} axb6 {[%emt 0:00:03]} 35. Ra8 {[%emt 0:04:06]} Rxd5 {[%emt 0:00:43]} 36. Rh8 {[%emt 0:01:57]} Kg7 {[%emt 0:00:13]} 37. Rd8 {[%emt 0:00:01]} Kf6 {[%emt 0:01:13]} 38. Rh8 {[%emt 0:02:37]} Kg7 {[%emt 0:00:02]} 39. Rd8 {[%emt 0:00:07]} Kf6 {[%emt 0:00:06]} 40. Rd7 {[%emt 0:00:47]} h6 {[%emt 0:01:10]} 41. Rh7 {[%emt 0:03:04]} Kg5 {[%emt 0:01:32]} 42. f6 {[%emt 0:00:31]} Rd3 {[%emt 0:09:08]} 43. f7 {[%emt 0:01:39]} Bf8 {[%emt 0:00:13]} 44. Rh8 {[%emt 0:07:07]} Rd8 {[%emt 0:00:07]} 45. Rb3 {[%emt 0:00:01]} Kf6 {[%emt 0:11:34]} 46. Rf3+ {[%emt 0:00:40]} Ke6 {[%emt 0:00:15]} 47. Rg8 {[%emt 0:01:15]} c4 {[%emt 0:00:46]} 48. Rg6+ {[%emt 0:00:05]} Kd5 {[%emt 0:00:13]} 49. g4 {[%emt 0:01:16]} e4 {[%emt 0:01:17]} 50. Rf5+ {[%emt 0:00:31]} Kd4 {[%emt 0:00:06]} 51. Rc6 {[%emt 0:00:39]} c3 {[%emt 0:02:14]} 52. g5 {[%emt 0:13:22]} Kd3 {[%emt 0:11:11]} 53. g6 {[%emt 0:04:28]} c2 {[%emt 0:00:04]} 54. Re5 {[%emt 0:00:51]} Rd4 {[%emt 0:01:11]} 55. Rxc7 {[%emt 0:02:04]} Rc4 {[%emt 0:00:18]} 56. Rxc4 {[%emt 0:00:24]} Kxc4 {[%emt 0:00:02]} 57. Rxe4+ {[%emt 0:00:09]} Kxb5 {[%emt 0:01:25]} 58. Re1 {[%emt 0:00:01]} Ka4 {[%emt 0:00:35]} 59. f4 {[%emt 0:00:08]} b5 {[%emt 0:00:07]} 60. f5 {[%emt 0:00:18]} b4 {[%emt 0:00:27]} 61. f6 {[%emt 0:00:24]} b3 {[%emt 0:00:07]} 62. g7 {[%emt 0:00:06]} b2 {[%emt 0:00:13]} 63. gxf8=Q {[%emt 0:00:09]} 1-0

[Event "SVK-ch GM 2018"]
[Site "Banska Stiavnica"]
[Date "2018.07.07"]
[Round "1"]
[White "Jurcik, Marian"]
[Black "Petenyi, Tamas"]
[Result "1-0"]
[ECO "B81"]
[WhiteElo "2445"]
[BlackElo "2450"]
[Annotator "ChessBase"]
[PlyCount "63"]
[EventDate "2018.07.07"]
[EventType "tourn"]
[EventCountry "SVK"]
[SourceTitle "playchess.com"]
[Source "ChessBase"]
[SourceQuality "1"]
[TimeControl "40/5400+30:1800+30"]

1. e4 {[%emt 0:00:00]} c5 {[%emt 0:00:24]} 2. Nf3 {[%emt 0:00:00]} e6 {[%emt 0:00:21]} 3. d4 {[%emt 0:01:05]} cxd4 {[%emt 0:00:09]} 4. Nxd4 {[%emt 0:00:07]} Nf6 {[%emt 0:00:05]} 5. Nc3 {[%emt 0:04:14]} d6 {[%emt 0:00:11]} 6. g4 {[%emt 0:00:50]} a6 {[%emt 0:01:33]} 7. g5 {[%emt 0:01:04]} Nfd7 {[%emt 0:00:09]} 8. f4 {[%emt 0:09:02]} Nc6 {[%emt 0:04:41]} 9. h4 {[%emt 0:06:07]} Be7 {[%emt 0:04:02]} 10. Be3 {[%emt 0:00:44]} O-O {[%emt 0:02:03]} 11. Qd2 {[%emt 0:09:42]} Nxd4 {[%emt 0:07:48]} 12. Bxd4 {[%emt 0:00:42]} b5 {[%emt 0:00:56]} 13. O-O-O {[%emt 0:03:03]} Bb7 {[%emt 0:02:43]} 14. a3 {[%emt 0:08:58]} Rc8 {[%emt 0:05:01]} 15. g6 {[%emt 0:02:01]} Nf6 {[%emt 0:10:14]} 16. gxh7+ {[%emt 0:06:17]} Kh8 {[%emt 0:02:28]} 17. Rg1 {[%emt 0:00:36]} Ne8 {[%emt 0:15:35]} 18. h5 {[%emt 0:19:15]} Bf6 {[%emt 0:03:19]} 19. h6 {[%emt 0:01:01]} g6 {[%emt 0:00:19]} 20. f5 {[%emt 0:01:05]} Bxd4 {[%emt 0:04:14]} 21. Qxd4+ {[%emt 0:00:23]} e5 {[%emt 0:00:08]} 22. Qe3 {[%emt 0:05:48]} Qf6 {[%emt 0:06:34]} 23. Bh3 {[%emt 0:01:06]} g5 {[%emt 0:02:32]} 24. Rxg5 {[%emt 0:01:29]} Kxh7 {[%emt 0:00:44]} 25. Rdg1 {[%emt 0:01:02]} d5 {[%emt 0:04:20]} 26. exd5 {[%emt 0:03:13]} Nd6 {[%emt 0:00:12]} 27. Rg6 {[%emt 0:02:50]} fxg6 {[%emt 0:05:50]} 28. fxg6+ {[%emt 0:00:02]} Kh8 {[%emt 0:00:34]} 29. g7+ {[%emt 0:03:01]} Kh7 {[%emt 0:00:04]} 30. Ne4 {[%emt 0:01:19]} Nxe4 {[%emt 0:11:10]} 31. Qxe4+ {[%emt 0:00:02]} Kxh6 {[%emt 0:00:08]} 32. Bxc8 {[%emt 0:01:47]} 1-0

[Event "SVK-ch GM 2018"]
[Site "Banska Stiavnica"]
[Date "2018.07.07"]
[Round "1"]
[White "Manik, Mikulas"]
[Black "Pechac, Jergus"]
[Result "1-0"]
[ECO "C67"]
[WhiteElo "2400"]
[BlackElo "2435"]
[Annotator "NA"]
[PlyCount "77"]
[EventDate "2018.07.07"]
[EventType "tourn"]
[EventCountry "SVK"]
[SourceTitle "playchess.com"]
[Source "ChessBase"]
[SourceQuality "1"]
[TimeControl "40/5400+30:1800+30"]

1. e4 {[%emt 0:00:00]} e5 {[%emt 0:00:41]} 2. Nf3 {[%emt 0:00:00]} Nc6 {[%emt 0:00:11]} 3. Bb5 {[%emt 0:00:00]} Nf6 {[%emt 0:00:03]} 4. O-O {[%emt 0:00:50]} Nxe4 {[%emt 0:00:06]} 5. Re1 {[%emt 0:00:20]} Nd6 {[%emt 0:00:13]} 6. Nxe5 {[%emt 0:00:06]} Be7 {[%emt 0:00:04]} 7. Bf1 {[%emt 0:00:38]} Nxe5 {[%emt 0:00:05]} 8. Rxe5 {[%emt 0:00:09]} O-O {[%emt 0:00:04]} 9. d4 {[%emt 0:03:22]} Bf6 {[%emt 0:00:04]} 10. Re1 {[%emt 0:00:34]} Re8 {[%emt 0:00:04]} 11. Rxe8+ {[%emt 0:05:26]} Nxe8 {[%emt 0:00:09]} 12. c3 {[%emt 0:01:48]} d5 {[%emt 0:00:03]} 13. Bf4 {[%emt 0:02:24]} Nd6 {[%emt 0:00:20]} 14. Nd2 {[%emt 0:01:30]} c6 {[%emt 0:00:19]} 15. Bd3 {[%emt 0:07:02]} Bf5 {[%emt 0:00:25]} 16. Nf1 {[%emt 0:03:22]} Qd7 {[%emt 0:03:06]} 17. Bxd6 {[%emt 0:04:36]} Bxd3 {[%emt 0:00:05]} 18. Qxd3 {[%emt 0:00:05]} Qxd6 {[%emt 0:00:03]} 19. Re1 {[%emt 0:00:22]} Qd7 {[%emt 0:00:06]} 20. Qe2 {[%emt 0:08:33]} Kf8 {[%emt 0:00:16]} 21. Nd2 {[%emt 0:03:18]} Re8 {[%emt 0:00:18]} 22. Qxe8+ {[%emt 0:00:12]} Qxe8 {[%emt 0:00:04]} 23. Rxe8+ {[%emt 0:00:13]} Kxe8 {[%emt 0:00:03]} 24. Kf1 {[%emt 0:00:05]} Bg5 {[%emt 0:00:05]} 25. Ke2 {[%emt 0:00:07]} Bxd2 {[%emt 0:00:04]} 26. Kxd2 {[%emt 0:00:04]} Kd7 {[%emt 0:00:05]} 27. Ke3 {[%emt 0:00:12]} Ke6 {[%emt 0:00:05]} 28. Kf4 {[%emt 0:00:47]} Kf6 {[%emt 0:00:07]} 29. h4 {[%emt 0:02:02]} h5 {[%emt 0:00:04]} 30. b4 {[%emt 0:01:55]} b5 {[%emt 0:08:25]} 31. f3 {[%emt 0:14:55]} g6 {[%emt 0:00:27]} 32. g3 {[%emt 0:01:40]} g5+ {[%emt 0:00:04]} 33. hxg5+ {[%emt 0:00:08]} Kg6 {[%emt 0:00:04]} 34. Ke5 {[%emt 0:00:31]} Kxg5 {[%emt 0:00:04]} 35. Kd6 {[%emt 0:01:39]} f5 {[%emt 0:00:16]} 36. Ke5 {[%emt 0:00:41]} a6 {[%emt 0:00:16]} 37. a3 {[%emt 0:00:04]} f4 {[%emt 0:00:04]} 38. gxf4+ {[%emt 0:00:17]} Kg6 {[%emt 0:00:13]} 39. f5+ {[%emt 0:04:12]} 1-0

[Event "SVK-ch GM 2018"]
[Site "Banska Stiavnica"]
[Date "2018.07.07"]
[Round "1"]
[White "Zvarik, Martin"]
[Black "Nayhebaver, Martin"]
[Result "1-0"]
[ECO "A06"]
[WhiteElo "2280"]
[BlackElo "2478"]
[Annotator "ChessBase"]
[PlyCount "101"]
[EventDate "2018.07.07"]
[EventType "tourn"]
[EventCountry "SVK"]
[SourceTitle "playchess.com"]
[Source "ChessBase"]
[SourceQuality "1"]
[TimeControl "40/5400+30:1800+30"]

1. g3 {[%emt 0:00:29]} d5 {[%emt 0:01:02]} 2. Nf3 {[%emt 0:01:35]} c6 {[%emt 0:00:26]} 3. b3 {[%emt 0:00:55]} Bg4 {[%emt 0:01:25]} 4. Bg2 {[%emt 0:02:49]} Nd7 {[%emt 0:01:29]} 5. Bb2 {[%emt 0:04:09]} Ngf6 {[%emt 0:04:37]} 6. O-O {[%emt 0:05:28]} e6 {[%emt 0:03:42]} 7. d3 {[%emt 0:03:52]} Bd6 {[%emt 0:04:36]} 8. Qe1 {[%emt 0:05:16]} O-O {[%emt 0:02:23]} 9. e4 {[%emt 0:02:31]} e5 {[%emt 0:07:34]} 10. exd5 {[%emt 0:05:49]} Bxf3 {[%emt 0:01:34]} 11. Bxf3 {[%emt 0:00:32]} cxd5 {[%emt 0:00:14]} 12. Nd2 {[%emt 0:04:34]} Re8 {[%emt 0:07:29]} 13. Rd1 {[%emt 0:04:57]} Rc8 {[%emt 0:10:58]} 14. c4 {[%emt 0:03:56]} Bb4 {[%emt 0:02:46]} 15. cxd5 {[%emt 0:09:08]} Rc2 {[%emt 0:16:52]} 16. a3 {[%emt 0:00:16]} Bc3 {[%emt 0:02:34]} 17. Bxc3 {[%emt 0:02:00]} Rxc3 {[%emt 0:00:10]} 18. Qe3 {[%emt 0:05:17]} Nb6 {[%emt 0:05:03]} 19. Rfe1 {[%emt 0:08:48]} Nfxd5 {[%emt 0:02:48]} 20. Bxd5 {[%emt 0:00:54]} Qxd5 {[%emt 0:00:37]} 21. Ne4 {[%emt 0:02:09]} Rxb3 {[%emt 0:02:15]} 22. Qg5 {[%emt 0:01:37]} Re6 {[%emt 0:10:13]} 23. Qf5 {[%emt 0:14:58]} h6 {[%emt 0:00:33]} 24. g4 {[%emt 0:01:36]} Nd7 {[%emt 0:03:30]} 25. g5 {[%emt 0:03:26]} g6 {[%emt 0:03:19]} 26. Qf3 {[%emt 0:02:57]} hxg5 {[%emt 0:02:16]} 27. Qh3 {[%emt 0:00:38]} Nf6 {[%emt 0:01:53]} 28. Rc1 {[%emt 0:01:07]} Qd8 {[%emt 0:00:57]} 29. Nxf6+ {[%emt 0:00:15]} Kg7 {[%emt 0:00:26]} 30. Ne4 {[%emt 0:02:01]} Rxd3 {[%emt 0:00:35]} 31. Qg2 {[%emt 0:00:17]} Rxa3 {[%emt 0:00:39]} 32. Nc5 {[%emt 0:00:56]} Re7 {[%emt 0:00:29]} 33. Qxg5 {[%emt 0:00:28]} Qd6 {[%emt 0:00:31]} 34. Ne4 {[%emt 0:00:18]} Qe6 {[%emt 0:00:12]} 35. Rcd1 {[%emt 0:00:52]} f6 {[%emt 0:00:38]} 36. Qc1 {[%emt 0:00:27]} Qg4+ {[%emt 0:00:40]} 37. Ng3 {[%emt 0:00:05]} Ra2 {[%emt 0:00:31]} 38. Qc5 {[%emt 0:01:01]} Rf7 {[%emt 0:00:21]} 39. Kg2 {[%emt 0:00:23]} b6 {[%emt 0:00:39]} 40. Qd5 {[%emt 0:00:37]} Rb2 {[%emt 0:00:16]} 41. Re4 {[%emt 0:01:38]} Qc8 {[%emt 0:01:23]} 42. Rd3 {[%emt 0:05:48]} Re7 {[%emt 0:12:21]} 43. Rf3 {[%emt 0:03:38]} Qe6 {[%emt 0:01:57]} 44. Qa8 {[%emt 0:02:49]} Rb3 {[%emt 0:03:37]} 45. Rxb3 {[%emt 0:08:22]} Qxb3 {[%emt 0:00:05]} 46. Rg4 {[%emt 0:01:02]} Rd7 {[%emt 0:05:32]} 47. Qe8 {[%emt 0:01:19]} Qd5+ {[%emt 0:02:35]} 48. Kh3 {[%emt 0:00:27]} Qd3 {[%emt 0:04:45]} 49. f3 {[%emt 0:01:43]} Rc7 {[%emt 0:02:18]} 50. Nh5+ {[%emt 0:02:50]} Kh6 {[%emt 0:00:08]} 51. Qf8+ {[%emt 0:00:13]} 1-0

[Event "SVK-ch GM 2018"]
[Site "Banska Stiavnica"]
[Date "2018.07.08"]
[Round "2"]
[White "Gazik, Viktor"]
[Black "Jurcik, Marian"]
[Result "1/2-1/2"]
[ECO "B23"]
[WhiteElo "2490"]
[BlackElo "2445"]
[Annotator "ChessBase"]
[PlyCount "92"]
[EventDate "2018.07.07"]
[EventType "tourn"]
[EventCountry "SVK"]
[SourceTitle "playchess.com"]
[Source "ChessBase"]
[SourceQuality "1"]
[TimeControl "40/5400+30:1800+30"]

1. e4 {[%emt 0:00:00]} c5 {[%emt 0:00:56]} 2. Nc3 {[%emt 0:00:00]} e6 {[%emt 0:00:49]} 3. Nge2 {[%emt 0:00:00]} Nc6 {[%emt 0:04:44]} 4. g3 {[%emt 0:00:03]} a6 {[%emt 0:02:39]} 5. a4 {[%emt 0:03:18]} d5 {[%emt 0:06:26]} 6. exd5 {[%emt 0:02:33]} exd5 {[%emt 0:00:47]} 7. Bg2 {[%emt 0:00:41]} d4 {[%emt 0:00:19]} 8. Nd5 {[%emt 0:00:20]} Bd6 {[%emt 0:03:08]} 9. O-O {[%emt 0:04:13]} Nge7 {[%emt 0:00:07]} 10. Nef4 {[%emt 0:00:27]} Nxd5 {[%emt 0:01:33]} 11. Nxd5 {[%emt 0:00:10]} O-O {[%emt 0:00:45]} 12. d3 {[%emt 0:05:53]} Re8 {[%emt 0:18:58]} 13. Bd2 {[%emt 0:13:03]} a5 {[%emt 0:01:55]} 14. Re1 {[%emt 0:09:20]} Rxe1+ {[%emt 0:00:50]} 15. Qxe1 {[%emt 0:01:12]} Bf5 {[%emt 0:21:11]} 16. Qd1 {[%emt 0:21:43]} Rb8 {[%emt 0:07:21]} 17. Qf3 {[%emt 0:04:58]} Be6 {[%emt 0:04:03]} 18. Re1 {[%emt 0:05:15]} Nb4 {[%emt 0:02:13]} 19. Bxb4 {[%emt 0:03:16]} axb4 {[%emt 0:00:02]} 20. Qe4 {[%emt 0:03:10]} Qg5 {[%emt 0:05:47]} 21. Nb6 {[%emt 0:11:01]} Qd2 {[%emt 0:08:53]} 22. Qe2 {[%emt 0:07:13]} Qxe2 {[%emt 0:00:15]} 23. Rxe2 {[%emt 0:00:02]} b3 {[%emt 0:05:55]} 24. cxb3 {[%emt 0:01:31]} Bxb3 {[%emt 0:00:01]} 25. a5 {[%emt 0:01:05]} Be6 {[%emt 0:01:15]} 26. f4 {[%emt 0:01:42]} g6 {[%emt 0:00:35]} 27. Kf2 {[%emt 0:00:13]} Kg7 {[%emt 0:00:59]} 28. Re1 {[%emt 0:00:29]} h5 {[%emt 0:00:35]} 29. Be4 {[%emt 0:00:42]} Kf6 {[%emt 0:00:52]} 30. Bd5 {[%emt 0:00:51]} Bf5 {[%emt 0:00:28]} 31. Be4 {[%emt 0:00:16]} Be6 {[%emt 0:00:01]} 32. Bf3 {[%emt 0:00:38]} Kg7 {[%emt 0:00:56]} 33. Kg2 {[%emt 0:00:23]} Bf5 {[%emt 0:00:29]} 34. Nc4 {[%emt 0:00:15]} Bf8 {[%emt 0:00:40]} 35. Be4 {[%emt 0:00:19]} Be6 {[%emt 0:00:13]} 36. Nb6 {[%emt 0:00:55]} Bd6 {[%emt 0:00:16]} 37. Rf1 {[%emt 0:00:01]} Bc7 {[%emt 0:00:52]} 38. Rc1 {[%emt 0:00:22]} Bd6 {[%emt 0:00:12]} 39. Rf1 {[%emt 0:01:17]} Bc7 {[%emt 0:00:07]} 40. Na4 {[%emt 0:00:28]} Bxa5 {[%emt 0:01:14]} 41. Nxc5 {[%emt 0:30:07]} Bc8 {[%emt 0:07:11]} 42. f5 {[%emt 0:00:00]} Bd8 {[%emt 0:02:16]} 43. fxg6 {[%emt 0:00:00]} fxg6 {[%emt 0:00:07]} 44. Bd5 {[%emt 0:00:00]} Bf6 {[%emt 0:02:26]} 45. Ne4 {[%emt 0:00:00]} Bf5 {[%emt 0:00:30]} 46. Rc1 {[%emt 0:00:00]} Be5 {[%emt 0:02:43]} 1/2-1/2

[Event "SVK-ch GM 2018"]
[Site "Banska Stiavnica"]
[Date "2018.07.08"]
[Round "2"]
[White "Petenyi, Tamas"]
[Black "Repka, Christopher"]
[Result "0-1"]
[ECO "A01"]
[WhiteElo "2450"]
[BlackElo "2519"]
[Annotator "ChessBase"]
[PlyCount "62"]
[EventDate "2018.07.07"]
[EventType "tourn"]
[EventCountry "SVK"]
[SourceTitle "playchess.com"]
[Source "ChessBase"]
[SourceQuality "1"]
[TimeControl "40/5400+30:1800+30"]

1. b3 {[%emt 0:00:10]} d5 {[%emt 0:03:52]} 2. Bb2 {[%emt 0:00:06]} Bf5 {[%emt 0:00:18]} 3. e3 {[%emt 0:01:29]} e6 {[%emt 0:00:20]} 4. f4 {[%emt 0:00:48]} Nf6 {[%emt 0:02:34]} 5. Nf3 {[%emt 0:00:08]} Be7 {[%emt 0:03:36]} 6. Nc3 {[%emt 0:02:44]} c5 {[%emt 0:01:19]} 7. Bb5+ {[%emt 0:00:30]} Nbd7 {[%emt 0:00:06]} 8. Qe2 {[%emt 0:07:57]} a6 {[%emt 0:01:23]} 9. Bxd7+ {[%emt 0:00:07]} Qxd7 {[%emt 0:04:50]} 10. Ne5 {[%emt 0:00:17]} Qc7 {[%emt 0:01:38]} 11. g4 {[%emt 0:01:31]} Bg6 {[%emt 0:00:37]} 12. g5 {[%emt 0:13:37]} Nd7 {[%emt 0:02:41]} 13. Nxg6 {[%emt 0:00:17]} hxg6 {[%emt 0:00:10]} 14. O-O-O {[%emt 0:00:09]} b5 {[%emt 0:03:22]} 15. Qg2 {[%emt 0:04:04]} c4 {[%emt 0:03:44]} 16. Kb1 {[%emt 0:01:42]} Rc8 {[%emt 0:08:23]} 17. Rc1 {[%emt 0:02:13]} Qa5 {[%emt 0:00:17]} 18. Ne2 {[%emt 0:09:08]} Ba3 {[%emt 0:01:17]} 19. Bxa3 {[%emt 0:06:58]} Qxa3 {[%emt 0:01:41]} 20. f5 {[%emt 0:00:13]} gxf5 {[%emt 0:02:05]} 21. g6 {[%emt 0:04:08]} f6 {[%emt 0:00:06]} 22. Nf4 {[%emt 0:01:54]} b4 {[%emt 0:01:41]} 23. bxc4 {[%emt 0:08:48]} dxc4 {[%emt 0:04:42]} 24. Qb7 {[%emt 0:01:24]} Ke7 {[%emt 0:00:04]} 25. Ka1 {[%emt 0:05:33]} Rc5 {[%emt 0:00:23]} 26. Rb1 {[%emt 0:06:20]} Rb8 {[%emt 0:00:09]} 27. Qa7 {[%emt 0:01:39]} Ra5 {[%emt 0:00:16]} 28. Rb2 {[%emt 0:00:22]} c3 {[%emt 0:00:07]} 29. Rhb1 {[%emt 0:00:16]} cxb2+ {[%emt 0:00:26]} 30. Rxb2 {[%emt 0:00:06]} b3 {[%emt 0:00:07]} 31. cxb3 {[%emt 0:01:02]} Rxb3 {[%emt 0:00:07]} 0-1

[Event "SVK-ch GM 2018"]
[Site "Banska Stiavnica"]
[Date "2018.07.08"]
[Round "2"]
[White "Pechac, Jergus"]
[Black "Zvarik, Martin"]
[Result "0-1"]
[ECO "A45"]
[WhiteElo "2435"]
[BlackElo "2280"]
[Annotator "NA RC"]
[PlyCount "40"]
[EventDate "2018.07.07"]
[EventType "tourn"]
[EventCountry "SVK"]
[SourceTitle "playchess.com"]
[Source "ChessBase"]
[SourceQuality "1"]
[TimeControl "40/5400+30:1800+30"]

1. d4 {[%emt 0:06:02]} Nf6 {[%emt 0:00:35]} 2. Nc3 {[%emt 0:00:32]} d5 {[%emt 0:00:29]} 3. Bf4 {[%emt 0:00:07]} c6 {[%emt 0:02:33]} 4. Qd3 {[%emt 0:00:28]} g6 {[%emt 0:05:40]} 5. f3 {[%emt 0:00:06]} Bg7 {[%emt 0:00:44]} 6. e4 {[%emt 0:02:26]} Be6 {[%emt 0:13:12]} 7. O-O-O {[%emt 0:00:47]} b5 {[%emt 0:01:14]} 8. Kb1 {[%emt 0:14:53]} a5 {[%emt 0:04:37]} 9. Nge2 {[%emt 0:05:24]} Na6 {[%emt 0:10:18]} 10. Be5 {[%emt 0:01:54]} dxe4 $1 {[%emt 0:10:17]} 11. fxe4 {[%emt 0:00:10]} Bc4 {[%emt 0:00:51]} 12. Qf3 {[%emt 0:01:24]} b4 {[%emt 0:03:49]} 13. Bxf6 {[%emt 0:00:51]} exf6 {[%emt 0:00:43]} 14. Na4 {[%emt 0:00:54]} Bb5 {[%emt 0:03:40]} 15. Qb3 $1 {[%emt 0:00:22]} O-O $15 {[%emt 0:06:41]} 16. Ng3 {[%emt 0:02:36]} Ra7 {[%emt 0:06:00]} 17. d5 {[%emt 0:16:33]} f5 {[%emt 0:03:29]} 18. exf5 {[%emt 0:09:48]} Bxa4 {[%emt 0:00:41]} 19. Qxa4 {[%emt 0:00:04]} Qf6 {[%emt 0:00:33]} 20. c3 {[%emt 0:00:05]} bxc3 {[%emt 0:00:53]} 0-1